bitfinex/quotes_BTCUSD_20240905
["timestamp","ask_amount","ask_price","bid_price","bid_amount"]
[1725550588819,0.01641607,56175.0,56167.0,0.356076]
[1725550589042,0.01641607,56175.0,56162.0,0.17551096]
[1725550589043,0.01641607,56174.0,56166.0,0.356086]
[1725550589263,0.01641607,56173.0,56167.0,0.356079]
[1725550589482,0.1869,56176.0,56170.0,0.17803]
[1725550589827,0.1869,56176.0,56162.0,0.53162196]
[1725550589828,0.1869,56176.0,56172.0,0.356046]
[1725550590049,0.01641194,56175.0,56174.0,0.178018]
[1725550590283,0.194,56182.0,56172.0,0.356047]
[1725550590512,0.01641296,56181.0,56174.0,0.178017]
[1725550590749,0.01641296,56180.0,56174.0,0.178017]
[1725550591022,0.01641296,56179.0,56172.0,0.01672581]
[1725550591239,0.0111202,56184.0,56171.0,0.22917859]
[1725550591240,0.0111202,56184.0,56183.0,0.533968]
[1725550591485,0.0111202,56184.0,56183.0,1.75061555]
[1725550591724,0.0111202,56184.0,56183.0,1.41136236]
[1725550591936,0.0111202,56184.0,56183.0,0.1]
[1725550592152,0.0111202,56184.0,56178.0,0.356011]
[1725550592369,0.0111202,56184.0,56183.0,0.533968]
[1725550592618,0.0111202,56184.0,56183.0,1.134947]
[1725550593548,0.0111202,56184.0,56183.0,1.66643696]
[1725550593781,0.0111202,56184.0,56183.0,1.78043696]
[1725550594239,0.0111202,56184.0,56183.0,1.41045796]
[1725550594464,0.0111202,56184.0,56183.0,0.1]
[1725550594672,0.0111202,56184.0,56183.0,1.17945796]
[1725550595110,0.0111202,56184.0,56183.0,1.16545796]
[1725550595322,0.0111202,56184.0,56183.0,1.52143696]
[1725550595543,0.0111202,56184.0,56183.0,1.72773696]
[1725550596018,0.0111202,56184.0,56183.0,2.35343764]
[1725550596230,0.0111202,56184.0,56183.0,1.97245864]
[1725550596496,0.0111202,56184.0,56183.0,1.97873696]
[1725550596732,0.0111202,56184.0,56183.0,1.96473696]
[1725550596949,0.0111202,56184.0,56183.0,2.32071596]
[1725550597191,0.0111202,56184.0,56183.0,2.00545864]
[1725550597451,0.0111202,56184.0,56183.0,1.98873696]
[1725550597687,0.0111202,56184.0,56183.0,1.95173696]
[1725550597920,0.0111202,56184.0,56183.0,1.96573696]
[1725550598156,0.0111202,56184.0,56183.0,1.40745796]
[1725550598378,0.0111202,56184.0,56183.0,1.74943696]
[1725550598832,0.0111202,56184.0,56183.0,1.99261555]
[1725550599055,0.0111202,56184.0,56183.0,2.01561555]
[1725550599487,0.0111202,56184.0,56183.0,2.01761555]
[1725550599705,0.0111202,56184.0,56183.0,2.01561555]
[1725550600231,0.0111202,56184.0,56183.0,1.99261555]
[1725550600915,0.0111202,56184.0,56183.0,2.34859455]
[1725550601155,0.0111202,56184.0,56183.0,2.34459455]
[1725550601368,0.0111202,56184.0,56183.0,2.37359455]
[1725550601586,0.0111202,56184.0,56183.0,2.02761555]
[1725550602013,0.0111202,56184.0,56183.0,2.01361555]
[1725550602255,0.0111202,56184.0,56183.0,2.38359455]
[1725550602699,0.0111202,56184.0,56183.0,2.36959455]
[1725550603174,0.0111202,56184.0,56183.0,2.02761555]
[1725550603599,0.0111202,56184.0,56183.0,2.38359455]
[1725550603810,0.0119332,56184.0,56183.0,2.02561555]
[1725550604023,0.0119332,56184.0,56183.0,2.01561555]
[1725550604732,0.0119332,56184.0,56183.0,2.02561555]
[1725550605199,0.0119332,56184.0,56183.0,2.38159455]
[1725550605420,0.0119332,56184.0,56183.0,2.02561555]
[1725550605639,0.0119332,56184.0,56183.0,2.38159455]
[1725550605879,0.0119332,56184.0,56183.0,2.4083127]
[1725550606095,0.0119332,56184.0,56183.0,2.4103127]
[1725550606351,0.0119332,56184.0,56183.0,2.4203127]
[1725550606570,0.00021482,56197.0,56196.0,0.2291]
[1725550606805,0.00021482,56197.0,56196.0,1.83313155]
[1725550607027,0.00021482,56197.0,56196.0,2.93082255]
[1725550607239,0.00021482,56197.0,56196.0,2.9475407]
[1725550607453,0.00021482,56197.0,56196.0,2.9495407]
[1725550607908,0.00021482,56197.0,56196.0,2.9635407]
[1725550608389,0.00021482,56197.0,56196.0,2.9495407]
[1725550608843,0.00021482,56197.0,56196.0,2.9635407]
[1725550609277,0.00021482,56197.0,56196.0,2.9495407]
[1725550610227,0.00013,56216.0,56215.0,1.245216]
[1725550610433,0.00013,56216.0,56215.0,0.98944]
[1725550610676,0.00013,56216.0,56215.0,0.633664]
[1725550611362,0.00013,56216.0,56215.0,1.21861859]
[1725550611604,0.00013,56216.0,56215.0,1.40812955]
[1725550611815,0.00013,56216.0,56215.0,1.66442955]
[1725550612016,0.00013,56216.0,56215.0,2.37598155]
[1725550612269,0.00013,56216.0,56215.0,2.01820555]
[1725550612519,0.00013,56216.0,56215.0,2.37198155]
[1725550612956,0.00013,56216.0,56215.0,2.15680296]
[1725550612958,0.00013,56216.0,56215.0,0.82317496]
[1725550613186,0.00013,56216.0,56215.0,1.17895096]
[1725550613430,0.00013,56216.0,56215.0,0.291888]
[1725550613668,0.18533,56216.0,56215.0,0.014]
[1725550614106,0.18533,56216.0,56209.0,0.355808]
[1725550614107,0.19653513,56216.0,56209.0,0.355808]
[1725550614319,0.19653513,56216.0,56215.0,0.014]
[1725550614748,0.19653513,56216.0,56206.0,0.22917859]
[1725550614749,0.19653513,56216.0,56210.0,0.177903]
[1725550614970,0.19653513,56216.0,56207.0,0.355827]
[1725550615182,0.19653513,56216.0,56210.0,0.177902]
[1725550615395,0.19653513,56216.0,56209.0,0.177904]
[1725550615603,0.01133513,56216.0,56215.0,0.533664]
[1725550615841,0.01133513,56216.0,56215.0,0.014]
[1725550616074,0.01133513,56216.0,56215.0,0.191888]
[1725550616315,0.01133513,56216.0,56215.0,0.547664]
[1725550616572,0.01133513,56216.0,56215.0,0.90344]
[1725550616791,0.01133513,56216.0,56215.0,1.48839459]
[1725550617021,0.01133513,56216.0,56215.0,1.13261859]
[1725550617233,0.000943,56216.0,56215.0,1.11861859]
[1725550617449,0.000943,56216.0,56212.0,0.355793]
[1725550617670,0.000943,56216.0,56215.0,0.533664]
[1725550617912,0.000943,56216.0,56215.0,1.06495096]
[1725550618134,0.000943,56216.0,56215.0,1.42072696]
[1725550618404,0.000943,56216.0,56215.0,1.66390555]
[1725550618655,0.00021472,56223.0,56215.0,1.66390555]
[1725550618656,0.00021472,56223.0,56222.0,1.600794]
[1725550618900,0.00021472,56223.0,56222.0,2.11690496]
[1725550619121,0.00021472,56223.0,56222.0,2.13990496]
[1725550619360,0.00081,56233.0,56222.0,2.13990496]
[1725550619361,7.2e-07,56226.0,56225.0,0.450456]
[1725550619592,7.2e-07,56226.0,56225.0,1.87467155]
[1725550619804,7.2e-07,56226.0,56225.0,2.58609755]
[1725550620013,7.2e-07,56226.0,56225.0,3.71423376]
[1725550620224,0.184,56259.0,56240.0,1.610281]
[1725550620507,0.184,56259.0,56240.0,2.55477055]
[1725550620737,7.92328224,56269.0,56240.0,2.55477055]
[1725550620738,0.184,56263.0,56240.0,2.57948076]
[1725550620956,0.00356209,56262.0,56240.0,1.99126276]
[1725550621182,0.184,56263.0,56240.0,1.97455255]
[1725550621409,0.2392,56257.0,56240.0,2.02355255]
[1725550621646,0.184,56263.0,56240.0,2.39814748]
[1725550621895,6.5e-07,56242.0,56241.0,1.276642]
[1725550622119,6.5e-07,56242.0,56241.0,2.53548717]
[1725550622352,6.5e-07,56242.0,56241.0,2.36767517]
[1725550622885,6.5e-07,56242.0,56241.0,2.72328717]
[1725550623132,0.00021456,56265.0,56264.0,1.47331259]
[1725550623379,0.00021456,56265.0,56253.0,0.357531]
[1725550623380,0.00021456,56265.0,56256.0,0.22917859]
[1725550623622,0.00021456,56265.0,56253.0,0.3394]
[1725550623623,0.00021456,56265.0,56264.0,0.5332]
[1725550623859,0.00021456,56265.0,56264.0,1.06417796]
[1725550624082,0.00021456,56265.0,56264.0,0.35324396]
[1725550624315,0.00021456,56265.0,56264.0,0.70871096]
[1725550624555,0.00021456,56265.0,56264.0,1.41964496]
[1725550625007,0.00021456,56265.0,56264.0,1.06417796]
[1725550625247,0.00021456,56265.0,56264.0,1.41964496]
[1725550625536,0.00021456,56265.0,56264.0,1.06417796]
[1725550625731,0.00021456,56265.0,56262.0,0.177738]
[1725550625959,0.00021456,56265.0,56258.0,0.355503]
[1725550626184,0.00021456,56265.0,56264.0,0.5332]
[1725550626429,0.00021456,56265.0,56264.0,1.54264496]
[1725550626645,0.00021456,56265.0,56264.0,1.95754496]
[1725550626881,0.00021456,56265.0,56264.0,1.97154496]
[1725550627100,0.00021456,56265.0,56264.0,2.32701196]
[1725550627359,0.0100811,56265.0,56264.0,2.31301196]
[1725550627594,0.00021456,56265.0,56264.0,2.32701196]
[1725550627807,0.0100811,56265.0,56264.0,2.30401196]
[1725550628070,0.00021456,56265.0,56264.0,2.30601196]
[1725550628317,7.91125783,56269.0,56267.0,0.01]
[1725550628557,7.91125783,56269.0,56268.0,0.40468955]
[1725550628794,7.91125783,56269.0,56268.0,0.50468955]
[1725550629022,7.91125783,56269.0,56268.0,1.03785055]
[1725550629914,7.91125783,56269.0,56268.0,0.93785055]
[1725550630142,7.91125783,56269.0,56264.0,0.014]
[1725550630380,7.91125783,56269.0,56254.0,0.2609]
[1725550630381,0.1816,56268.0,56258.0,0.22917859]
[1725550630624,0.1816,56268.0,56264.0,0.014]
[1725550631063,0.1816,56268.0,56262.0,0.22917859]
[1725550631297,0.1816,56268.0,56267.0,0.76235059]
[1725550631520,0.1816,56268.0,56267.0,0.22917859]
[1725550631761,0.1816,56268.0,56265.0,0.17773]
[1725550632050,0.1816,56268.0,56267.0,0.40690259]
[1725550632267,7.91125783,56269.0,56268.0,0.17772]
[1725550632507,7.91125783,56269.0,56268.0,1.06411296]
[1725550632725,7.91125783,56269.0,56268.0,1.51955396]
[1725550632935,7.91125783,56269.0,56268.0,1.87499496]
[1725550633152,7.91125783,56269.0,56268.0,1.51955396]
[1725550633379,7.91125783,56269.0,56268.0,1.87499496]
[1725550633592,7.91125783,56269.0,56268.0,1.87699496]
[1725550633822,7.91125783,56269.0,56268.0,1.87499496]
[1725550634053,7.91125783,56269.0,56268.0,1.87699496]
[1725550634537,7.91125783,56269.0,56268.0,1.89099496]
[1725550634773,7.91125783,56269.0,56268.0,1.88899496]
[1725550635246,7.91125783,56269.0,56268.0,1.53355396]
[1725550635954,7.8577808,56269.0,56268.0,1.54355396]
[1725550636185,7.8577808,56269.0,56268.0,1.54555396]
[1725550636638,7.8577808,56269.0,56268.0,1.52955396]
[1725550636844,7.8577808,56269.0,56268.0,1.88499496]
[1725550637078,7.8577808,56269.0,56268.0,1.89899496]
[1725550637295,7.8577808,56269.0,56268.0,2.16339496]
[1725550637504,7.8577808,56269.0,56268.0,2.14939496]
[1725550637730,7.8577808,56269.0,56268.0,2.16339496]
[1725550638268,7.8577808,56269.0,56268.0,1.78595396]
[1725550638484,7.8577808,56269.0,56268.0,0.80867196]
[1725550638739,7.8577808,56269.0,56268.0,0.014]
[1725550639179,7.9577808,56269.0,56268.0,0.014]
[1725550639410,8.1844808,56269.0,56259.0,0.071234]
[1725550639665,0.21260201,56268.0,56252.0,0.01915546]
[1725550639891,0.24313992,56267.0,56252.0,0.01915546]
[1725550640128,0.2194,56265.0,56259.0,0.22917859]
[1725550640346,0.00834839,56264.0,56259.0,0.40468955]
[1725550640603,0.00834839,56264.0,56263.0,0.40691459]
[1725550640857,0.00834839,56264.0,56253.0,0.07125]
[1725550641131,0.00834839,56264.0,56250.0,0.01901133]
[1725550641132,0.4068,56260.0,56250.0,0.01901133]
[1725550641371,0.00356209,56259.0,56250.0,0.01901133]
[1725550641610,0.234,56257.0,56250.0,0.071253]
[1725550641836,0.4228,56255.0,56240.0,0.001624]
[1725550642082,0.4228,56255.0,56242.0,0.071265]
[1725550642083,0.1888,56253.0,56242.0,0.071265]
[1725550642297,0.01643439,56252.0,56243.0,0.355599]
[1725550642524,0.01643439,56252.0,56250.0,0.014]
[1725550642525,0.177774,56251.0,56250.0,0.014]
[1725550642758,1.0019356,56251.0,56250.0,0.014]
[1725550642975,0.47684743,56251.0,56250.0,0.014]
[1725550643198,0.4029,56250.0,56240.0,0.001624]
[1725550643665,0.936318,56241.0,56240.0,0.001624]
[1725550643669,0.4029,56241.0,56240.0,0.001624]
[1725550643889,0.44561088,56241.0,56240.0,0.001624]
[1725550644138,0.66284811,56241.0,56240.0,0.001624]
[1725550644324,0.66284811,56241.0,56216.0,0.355767]
[1725550644325,0.362126,56235.0,56216.0,0.355767]
[1725550644560,0.362126,56235.0,56215.0,0.355774]
[1725550644561,0.1802,56233.0,56226.0,0.52650515]
[1725550644841,0.1802,56231.0,56209.0,0.22917859]
[1725550645052,0.01999022,56232.0,56209.0,0.22917859]
[1725550645053,0.1802,56223.0,56210.0,0.177902]
[1725550645313,0.1802,56223.0,56210.0,0.355807]
[1725550645314,0.00356209,56222.0,56210.0,0.355807]
[1725550645534,0.2305,56221.0,56212.0,0.177895]
[1725550645750,0.2305,56221.0,56216.0,0.014]
[1725550645751,0.01149629,56220.0,56216.0,0.014]
[1725550646183,0.4083,56219.0,56216.0,0.014]
[1725550646397,0.533646,56217.0,56216.0,0.014]
[1725550646820,1.32271,56217.0,56216.0,0.014]
[1725550647036,0.44119406,56217.0,56216.0,0.014]
[1725550647252,0.44119406,56217.0,56205.0,0.26785213]
[1725550647253,0.41819406,56217.0,56205.0,0.26785213]
[1725550647468,0.41819406,56217.0,56206.0,0.0035579]
[1725550647675,0.41819406,56217.0,56205.0,0.26785213]
[1725550647676,0.41819406,56217.0,56211.0,0.177899]
[1725550647927,0.4103,56217.0,56211.0,0.177899]
[1725550648131,0.00782445,56216.0,56212.0,0.177896]
[1725550648343,0.4103,56217.0,56208.0,0.177909]
[1725550648578,0.4103,56217.0,56205.0,0.26785213]
[1725550648579,0.00356209,56216.0,56205.0,0.26785213]
[1725550648802,0.42671207,56217.0,56209.0,0.177906]
[1725550649011,0.4103,56217.0,56205.0,0.26785213]
[1725550649245,0.4113,56217.0,56209.0,0.177906]
[1725550649454,0.4113,56217.0,56208.0,0.35582]
[1725550649671,0.4113,56217.0,56212.0,0.177897]
[1725550649889,0.1807,56217.0,56216.0,0.177885]
[1725550650117,0.1807,56217.0,56213.0,0.177892]
[1725550650118,0.001,56217.0,56213.0,0.177892]
[1725550650365,0.001,56217.0,56216.0,0.35577]
[1725550650605,0.4182,56223.0,56215.0,0.177887]
[1725550650606,0.14257609,56223.0,56215.0,0.177887]
[1725550650824,0.001,56217.0,56216.0,0.177885]
[1725550651047,0.001,56217.0,56216.0,0.533655]
[1725550651383,0.001,56217.0,56214.0,0.355782]
[1725550651384,0.14257609,56223.0,56220.0,0.177872]
[1725550651600,0.14257609,56223.0,56216.0,0.355764]
[1725550651848,0.14257609,56223.0,56219.0,0.177874]
[1725550652077,0.355661,56234.0,56215.0,0.355775]
[1725550652311,0.03942417,56233.0,56216.0,0.355768]
[1725550652530,0.01642417,56232.0,56220.0,0.355741]
[1725550652759,0.03942417,56231.0,56220.0,0.355741]
[1725550652969,0.03942417,56230.0,56219.0,0.177872]
[1725550653181,0.023,56233.0,56220.0,0.1770185]
[1725550653409,0.365587,56245.0,56221.0,0.27140928]
[1725550653627,0.18950847,56240.0,56228.0,0.177845]
[1725550653832,0.18950847,56240.0,56218.0,0.2337]
[1725550653833,0.01642578,56239.0,56218.0,0.2337]
[1725550654054,0.177816,56238.0,56224.0,0.177859]
[1725550654264,0.1701,56236.0,56212.0,0.2337]
[1725550654500,0.355689,56229.0,56216.0,0.001626]
[1725550654734,0.177855,56226.0,56216.0,0.001626]
[1725550654978,0.1724,56225.0,56216.0,0.001626]
[1725550655199,0.177864,56223.0,56216.0,0.001626]
[1725550655433,0.37706,56224.0,56216.0,0.001626]
[1725550655869,0.177865,56223.0,56216.0,0.001626]
[1725550656101,0.1992,56224.0,56216.0,0.001626]
[1725550656365,0.1992,56224.0,56216.0,0.015626]
[1725550656627,0.001,56223.0,56216.0,0.015626]
[1725550656844,0.001,56223.0,56216.0,0.193509]
[1725550657115,0.001,56223.0,56222.0,0.177866]
[1725550657328,0.001,56223.0,56222.0,0.533598]
[1725550657561,0.001,56223.0,56222.0,1.06484096]
[1725550657778,0.002,56259.0,56222.0,1.06484096]
[1725550657779,0.1766,56242.0,56232.0,0.177831]
[1725550658000,0.1766,56242.0,56231.0,0.177835]
[1725550658220,0.1766,56242.0,56223.0,0.26785213]
[1725550658221,0.1766,56242.0,56230.0,0.355677]
[1725550658469,0.1766,56242.0,56232.0,0.177834]
[1725550658689,0.1766,56242.0,56230.0,0.355677]
[1725550658690,0.1766,56242.0,56231.0,0.355671]
[1725550658949,0.1766,56242.0,56223.0,0.44336309]
[1725550659170,0.1766,56242.0,56223.0,0.88222715]
[1725550659414,0.19601211,56242.0,56232.0,0.006]
[1725550659647,0.177814,56239.0,56232.0,0.006]
[1725550659884,0.1724,56241.0,56232.0,0.006]
[1725550660111,0.350206,56241.0,56232.0,0.006]
[1725550660336,0.023,56240.0,56232.0,0.006]
[1725550660584,0.177826,56235.0,56232.0,0.006]
[1725550660841,0.177831,56233.0,56232.0,0.006]
[1725550661064,1.248157,56233.0,56232.0,0.006]
[1725550661289,1.248157,56233.0,56204.0,0.52650515]
[1725550661290,0.359,56221.0,56207.0,0.177912]
[1725550661549,0.536869,56221.0,56220.0,0.52650515]
[1725550661771,0.359,56221.0,56209.0,0.355808]
[1725550662017,0.359,56221.0,56207.0,0.355823]
[1725550662018,0.177873,56220.0,56207.0,0.177912]
[1725550662229,0.177873,56220.0,56208.0,0.177908]
[1725550662230,0.023,56220.0,56208.0,0.177908]
[1725550662464,0.023,56220.0,56207.0,0.355822]
[1725550662695,0.359,56221.0,56216.0,0.015626]
[1725550662935,0.023,56220.0,56216.0,0.015626]
[1725550663147,0.359,56221.0,56216.0,0.001626]
[1725550664463,0.177882,56217.0,56216.0,0.001626]
[1725550664677,0.023,56220.0,56216.0,0.001626]
[1725550664902,0.023,56220.0,56216.0,0.015626]
[1725550665351,0.533646,56217.0,56216.0,0.001626]
[1725550665555,0.556646,56217.0,56216.0,0.015626]
[1725550666019,0.200882,56217.0,56216.0,0.015626]
[1725550666257,0.200882,56217.0,56216.0,0.001626]
[1725550666483,0.200882,56217.0,56216.0,0.015626]
[1725550666776,0.556646,56217.0,56216.0,0.015626]
[1725550667018,0.359,56221.0,56216.0,0.015626]
[1725550667250,0.1866,56221.0,56216.0,0.015626]
[1725550667697,0.177882,56217.0,56216.0,0.015626]
[1725550667928,0.1724,56217.0,56216.0,0.015626]
[1725550668144,0.729046,56217.0,56216.0,0.015626]
[1725550668356,0.38970804,56217.0,56216.0,0.001626]
[1725550668566,0.74547204,56217.0,56216.0,0.001626]
[1725550668784,0.74547204,56217.0,56216.0,0.015626]
[1725550669477,0.74547204,56217.0,56216.0,0.001626]
[1725550669697,0.74547204,56217.0,56216.0,0.010626]
[1725550669911,1.12752075,56217.0,56216.0,0.010626]
[1725550670161,0.79158135,56217.0,56216.0,0.010626]
[1725550670405,1.12106261,56217.0,56216.0,0.010626]
[1725550670637,0.79158332,56217.0,56216.0,0.010626]
[1725550671278,0.43581932,56217.0,56216.0,0.010626]
[1725550671528,0.79158332,56217.0,56216.0,0.010626]
[1725550672165,1.14734732,56217.0,56216.0,0.010626]
[1725550672872,0.79158332,56217.0,56216.0,0.010626]
[1725550673107,1.14734732,56217.0,56216.0,0.010626]
[1725550673542,0.79158332,56217.0,56216.0,0.010626]
[1725550673985,1.14734732,56217.0,56216.0,0.010626]
[1725550674218,0.04271272,56217.0,56216.0,0.243526]
[1725550674700,0.04270201,56217.0,56216.0,0.243526]
[1725550674934,0.01642801,56217.0,56216.0,0.243526]
[1725550675178,0.01642801,56217.0,56216.0,0.001626]
[1725550675390,0.04270158,56217.0,56216.0,0.001626]
[1725550675626,0.04270158,56217.0,56216.0,0.010626]
[1725550676080,0.04270158,56217.0,56216.0,0.001626]
[1725550676309,0.06570158,56217.0,56216.0,0.015626]
[1725550676558,0.03943112,56217.0,56216.0,0.015626]
[1725550676781,0.03943112,56217.0,56216.0,0.001626]
[1725550677044,0.06572091,56217.0,56216.0,0.001626]
[1725550677251,0.06572091,56217.0,56216.0,0.014626]
[1725550677468,0.04272091,56217.0,56216.0,0.014626]
[1725550677685,0.04272091,56217.0,56216.0,0.81613313]
[1725550677914,0.04272091,56217.0,56216.0,1.17190313]
[1725550677915,0.01643112,56217.0,56216.0,1.17190313]
[1725550678132,0.000813,56222.0,56220.0,0.17787]
[1725550678366,0.04271891,56221.0,56220.0,0.17787]
[1725550678817,0.04271891,56221.0,56219.0,0.177872]
[1725550679041,0.01643035,56220.0,56219.0,0.177872]
[1725550679548,0.01643035,56220.0,56217.0,0.355762]
[1725550679789,0.000813,56222.0,56220.0,0.01]
[1725550680013,0.02629004,56221.0,56220.0,0.01]
[1725550680240,0.02629004,56221.0,56216.0,0.001626]
[1725550680241,0.04272123,56221.0,56216.0,0.001626]
[1725550680478,0.04272123,56220.0,56216.0,0.001626]
[1725550680708,0.000813,56222.0,56216.0,0.001626]
[1725550680709,0.000813,56222.0,56219.0,0.011]
[1725550680922,0.04270422,56221.0,56219.0,0.011]
[1725550681163,0.06570422,56220.0,56219.0,0.011]
[1725550681385,1.31375218,56220.0,56219.0,0.011]
[1725550681860,1.64321766,56220.0,56219.0,0.011]
[1725550682103,1.69692205,56220.0,56219.0,0.011]
[1725550682355,0.27941505,56220.0,56219.0,0.011]
[1725550682570,0.04273491,56220.0,56219.0,0.419175]
[1725550683005,0.0164365,56220.0,56219.0,1.130677]
[1725550683244,0.0164365,56220.0,56219.0,0.774926]
[1725550683541,0.0164365,56220.0,56219.0,1.66193896]
[1725550683749,0.000813,56222.0,56221.0,1.245083]
[1725550683969,0.000813,56222.0,56221.0,2.57108409]
[1725550684196,0.000813,56222.0,56221.0,2.58644994]
[1725550684415,0.000812,56232.0,56221.0,2.58644994]
[1725550684416,0.000812,56232.0,56231.0,1.244862]
[1725550684631,0.000812,56232.0,56231.0,2.03749094]
[1725550684859,0.179,56276.0,56252.0,0.26785213]
[1725550685115,0.179,56276.0,56257.0,0.26785213]
[1725550685116,0.52650515,56261.0,56257.0,0.26785213]
[1725550685340,0.179,56276.0,56258.0,0.1855]
[1725550685341,0.355412,56273.0,56258.0,0.1855]
[1725550685562,0.01644335,56268.0,56259.0,0.355497]
[1725550685825,0.00081,56279.0,56267.0,0.26785213]
[1725550686291,0.00081,56279.0,56268.0,0.533161]
[1725550686515,0.00081,56279.0,56266.0,0.2359]
[1725550686516,0.17769,56278.0,56266.0,0.2359]
[1725550686724,0.00081,56279.0,56266.0,0.2359]
[1725550686725,0.356182,56279.0,56266.0,0.2359]
[1725550686971,0.3554,56275.0,56266.0,0.2359]
[1725550687197,0.3554,56275.0,56246.0,0.52850515]
[1725550687198,0.355478,56263.0,56252.0,0.422]
[1725550687430,0.355479,56262.0,56252.0,0.422]
[1725550687657,0.355487,56261.0,56252.0,0.2323]
[1725550687864,0.177756,56257.0,56252.0,0.2323]
[1725550688073,0.177743,56261.0,56252.0,0.2323]
[1725550688293,0.177746,56260.0,56252.0,0.2323]
[1725550688539,0.177753,56258.0,56252.0,0.2323]
[1725550688792,7.87124329,56269.0,56252.0,0.2323]
[1725550688793,0.355472,56264.0,56252.0,0.2323]
[1725550688998,7.86924329,56269.0,56252.0,0.2323]
[1725550688999,0.177746,56260.0,56252.0,0.2323]
[1725550689210,0.177741,56262.0,56252.0,0.2323]
[1725550689428,0.023,56261.0,56252.0,0.2463]
[1725550689667,0.177758,56257.0,56252.0,0.2463]
[1725550689886,0.200743,56261.0,56252.0,0.2323]
[1725550690146,0.355471,56264.0,56252.0,0.2463]
[1725550690147,0.177734,56264.0,56252.0,0.2463]
[1725550690358,0.200739,56263.0,56252.0,0.2463]
[1725550690567,0.177749,56259.0,56252.0,0.2323]
[1725550690834,0.355505,56258.0,56246.0,0.2371]
[1725550691041,0.355505,56258.0,56220.0,0.365741]
[1725550691042,0.179768,56253.0,56252.0,0.014]
[1725550691300,1.246376,56253.0,56252.0,0.00106177]
[1725550691542,1.246376,56253.0,56227.0,0.2257]
[1725550691543,0.177847,56228.0,56227.0,0.2257]
[1725550691781,0.002,56237.0,56225.0,0.52650515]
[1725550691782,0.177853,56226.0,56225.0,0.52650515]
[1725550691994,0.177853,56226.0,56216.0,0.001626]
[1725550691995,0.1823,56226.0,56216.0,0.001626]
[1725550692243,0.177867,56222.0,56216.0,0.001626]
[1725550692467,0.177877,56219.0,56216.0,0.001626]
[1725550692744,0.478718,56225.0,56216.0,0.001626]
[1725550692956,0.1,56234.0,56218.0,0.177876]
[1725550693193,0.5,56251.0,56216.0,0.001626]
[1725550693194,0.1817,56242.0,56225.0,0.62356213]
[1725550693439,0.1817,56242.0,56216.0,0.001626]
[1725550693440,0.355563,56249.0,56236.0,0.2216]
[1725550693659,0.1909,56257.0,56237.0,0.1932]
[1725550693891,0.355553,56251.0,56237.0,0.1932]
[1725550694126,0.1909,56257.0,56237.0,0.1932]
[1725550694127,0.177771,56252.0,56241.0,0.177804]
[1725550694342,0.177779,56250.0,56240.0,0.26785213]
[1725550694556,0.177792,56246.0,56237.0,0.1932]
[1725550694806,0.1909,56257.0,56237.0,0.1932]
[1725550695018,0.355529,56255.0,56240.0,0.26785213]
[1725550695237,0.355519,56256.0,56243.0,0.177798]
[1725550695438,0.01979302,56262.0,56241.0,0.2295]
[1725550695439,0.355528,56255.0,56241.0,0.2295]
[1725550695651,0.02979302,56262.0,56241.0,0.2295]
[1725550695652,0.02,56261.0,56241.0,0.2295]
[1725550695888,0.03,56261.0,56241.0,0.2295]
[1725550696146,0.49157519,56266.0,56241.0,0.2295]
[1725550696147,0.355457,56266.0,56245.0,0.26785213]
[1725550696379,8.20567604,56269.0,56245.0,0.26785213]
[1725550696380,0.177737,56263.0,56252.0,0.17777]
[1725550696645,0.355473,56263.0,56249.0,0.177778]
[1725550696861,0.001,56255.0,56245.0,0.62343413]
[1725550697071,0.001,56255.0,56248.0,0.249041]
[1725550697295,0.001,56255.0,56248.0,0.071257]
[1725550697512,0.355495,56260.0,56248.0,0.071257]
[1725550697739,0.177753,56258.0,56247.0,0.177786]
[1725550697960,0.355495,56260.0,56246.0,0.00355541]
[1725550698180,0.177746,56260.0,56247.0,0.426829]
[1725550698412,0.355487,56261.0,56247.0,0.426829]
[1725550698636,0.3005,56268.0,56247.0,0.249044]
[1725550698844,0.177755,56257.0,56247.0,0.249044]
[1725550699063,0.002,56262.0,56247.0,0.071258]
[1725550699304,0.07202306,56267.0,56242.0,0.52650515]
[1725550699305,0.355525,56255.0,56242.0,0.52650515]
[1725550699541,0.023,56267.0,56241.0,0.56861813]
[1725550699773,0.003,56261.0,56241.0,0.56861813]
[1725550700017,0.177792,56246.0,56241.0,0.2295]
[1725550700252,0.177795,56245.0,56241.0,0.2295]
[1725550700485,0.023,56260.0,56241.0,0.2295]
[1725550700736,0.005,56262.0,56242.0,0.426868]
[1725550700737,0.177763,56255.0,56242.0,0.426868]
[1725550700951,0.355515,56257.0,56246.0,0.177789]
[1725550700952,0.177761,56256.0,56246.0,0.177789]
[1725550701170,0.023,56261.0,56245.0,0.355585]
[1725550701171,0.177753,56258.0,56245.0,0.355585]
[1725550701413,0.00797552,56259.0,56249.0,0.17778]
[1725550701414,0.177749,56259.0,56249.0,0.17778]
[1725550701652,0.177749,56259.0,56248.0,0.355567]
[1725550701653,0.25691774,56259.0,56247.0,0.177786]
[1725550701875,0.023,56261.0,56244.0,0.355589]
[1725550702088,0.200744,56261.0,56251.0,0.177774]
[1725550702292,0.200744,56261.0,56252.0,0.2358]
[1725550702519,0.177748,56260.0,56252.0,0.2358]
[1725550702737,0.355411,56273.0,56256.0,0.26785213]
[1725550703287,0.003,56261.0,56260.0,0.533238]
[1725550703508,0.003,56261.0,56258.0,0.2334]
[1725550703739,0.35543,56270.0,56258.0,0.2334]
[1725550703740,0.177728,56266.0,56258.0,0.2334]
[1725550703969,0.355431,56270.0,56258.0,0.2334]
[1725550704188,0.355443,56268.0,56258.0,0.2334]
[1725550704414,0.177728,56266.0,56258.0,0.2334]
[1725550704638,0.355443,56268.0,56258.0,0.2334]
[1725550704639,0.533166,56268.0,56258.0,0.2334]
[1725550704863,0.177726,56267.0,56258.0,0.2334]
[1725550705100,0.35545,56267.0,56258.0,0.2334]
[1725550705333,0.177726,56267.0,56258.0,0.2334]
[1725550705574,0.177727,56266.0,56258.0,0.2334]